[Event "67th Mexican-ch Open 2022"]
[Site "Chihuahua"]
[Date "2022.04.13"]
[Round "1.20"]
[White "Diaz Villagran, Robert"]
[Black "Baeza, Patricio"]
[Result "1-0"]
[ECO "B22"]
[WhiteElo "2318"]
[BlackElo "1711"]
[Annotator "TA"]
[PlyCount "73"]
[EventDate "2022.04.12"]
[EventType "swiss"]
[EventCountry "MEX"]
[SourceTitle "playchess.com"]
[Source "ChessBase"]
[SourceQuality "1"]
[TimeControl "5400+30"]

{[%evp 21,73,35,50,53,46,62,54,64,65,61,70,87,68,72,64,69,97,79,66,68,77,64,68,70,68,83,108,15,341,336,477,480,456,467,440,442,1006,707,5481,972,1005,990,969,949,842,817,2589,2593,1826,2190,1848,1791,29996,29997]} 1. e4 {[%emt 0:01:16]} c5 {[%emt 0:01:37][%cal Bc7c5,Bc5d4][%mdl 32]} 2. c3 {[%emt 0:00:27]} Nf6 {[%emt 1:29:53]} 3. e5 {[%emt 1:30:17]} Nd5 {[%emt 0:00:30]} 4. d4 {[%emt 0:00:00]} cxd4 {[%emt 0:00:30]} 5. Nf3 {[%emt 0:01:00]} d6 {[%emt 0:00:30]} 6. Bc4 {[%emt 0:00:30]} Nb6 {[%emt 0:00:30]} 7. Bb3 {[%emt 0:00:30]} Nc6 {[%emt 0:00:30]} 8. exd6 {[%emt 0:00:30]} e6 {[%emt 0:00:00]} 9. cxd4 {[%emt 0:00:00]} Bxd6 {[%emt 0:00:00]} 10. O-O {[%emt 0:00:00]} O-O {[%emt 0:01:30]} 11. Nc3 {[%emt 0:01:30]} a6 {[%emt 0:00:30]} 12. Re1 {[%emt 0:00:30] B22: Sicilian: 2 c3.} Nd5 {[%emt 0:00:30]} 13. Bc2 {[%emt 0:00:30]} Ncb4 {[%emt 0:00:30]} 14. Bb1 {[%emt 0:00:30] [#] White is slightly better.} Qc7 $146 {[%emt 0:00:30]} ({Predecessor:} 14... Nf6 15. Bg5 Nbd5 16. Ne5 h6 17. Bh4 Be7 18. Nxd5 exd5 19. Bxf6 Bxf6 20. a4 Bxe5 21. dxe5 Be6 22. Ra3 Rc8 {1-0 (37) Liascovich,L (2237)-Deleau,A Buenos Aires 2000}) 15. a3 {[%emt 0:00:30]} Nxc3 {[%emt 0:00:30]} 16. bxc3 {[%emt 0:00:30]} Nd5 {[%emt 0:00:30]} (16... Qxc3 $2 17. Bd2 Qc7 18. Bxb4 $18) 17. Qd3 $40 {[%emt 0:00:30][%csl Gb1][%cal Rd3h7][%mdl 128] Black is in trouble.} g6 {[%emt 0:00:30]} 18. c4 {[%emt 0:00:30][%cal Bc3c4,Bc4c5][%mdl 32]} Ne7 {[%emt 0:00:30]} 19. Bg5 {[%emt 0:00:30]} b5 {[%emt 0:00:30]} 20. c5 {[%emt 0:00:30]} (20. cxb5 axb5 21. Qxb5 Ra5 $11) 20... Bf4 {[%emt 0:00:30]} 21. Bxe7 {[%emt 0:00:30]} Qxe7 {[%emt 0:00:30]} 22. Qe4 {[%emt 0:00:30]} Bb8 {[%emt 0:00:00]} 23. Ba2 {[%emt 0:00:00]} ({Weaker is} 23. Qxa8 Bb7 24. Qxb7 (24. Rxe6 $2 fxe6 25. Qxb7 Qxb7 $19) 24... Qxb7 $17) 23... Qc7 {[%emt 0:00:00]} 24. Qh4 {[%emt 0:01:00] &Bianco is more active.} ({And not} 24. Qxa8 Bb7 25. Qxb7 Qxb7 $17) (24. Ne5 $16) 24... Bb7 $2 {[%emt 0:01:30][%mdl 8192] [#] This costs Black the game.} (24... Qf4 $11) 25. Ng5 $1 $18 {[%emt 0:00:30][%csl Gg5][%cal Rh4h7]} h5 {[%emt 0:00:30] [#]} (25... Qxh2+ $142 26. Qxh2 Bxh2+ 27. Kxh2 Rfd8) 26. Nxe6 $1 {[%emt 0:00:30][%mdl 512]} fxe6 {[%emt 0:00:30]} 27. Rxe6 {[%emt 0:00:30]} Kh8 {[%emt 0:00:30]} 28. Rxg6 {[%emt 0:00:30] Intending Rh6+ and mate.} Rf5 {[%emt 0:00:30]} (28... Qh7 $2 29. Bb1 Bf4 30. Rf6 Rxf6 31. Bxh7) (28... Qxh2+ $142 29. Qxh2 Bxh2+ 30. Kxh2 Be4) 29. Re1 {[%emt 0:00:30][%cal Oe1e5] White threatens Re5! and mate.} Kh7 {[%emt 0:00:30]} 30. Rge6 {[%emt 0:00:30]} (30. Rg3 $142 Bc8 31. Bb1) 30... Qxh2+ {[%emt 0:00:30]} 31. Qxh2 {[%emt 0:00:00]} Bxh2+ {[%emt 0:00:30]} 32. Kxh2 {[%emt 0:01:00]} Rxf2 {[%emt 0:00:30]} 33. Re7+ {[%emt 0:00:30]} Kh6 {[%emt 0:00:30]} 34. R1e6+ {[%emt 0:00:30]} Kg5 {[%emt 0:00:30]} 35. Rg7+ {[%emt 0:00:30]} Kh4 {[%emt 0:00:30]} 36. Rxb7 {[%emt 0:00:30][%cal Ob7g7] Threatening mate with Rg7!} Rxa2 {[%emt 0:00:30]} 37. Rg7 {[%emt 0:00:30] Weighted Error Value: White=0.13 (very precise) /Black=0.79} 1-0

[Event "67th Mexican-ch Open 2022"]
[Site "Chihuahua"]
[Date "2022.04.13"]
[Round "1.21"]
[White "Serrato, Rafael Antonio"]
[Black "Capo Vidal, Uriel"]
[Result "1-0"]
[ECO "D00"]
[WhiteElo "1707"]
[BlackElo "2306"]
[Annotator "TA"]
[PlyCount "93"]
[EventDate "2022.04.12"]
[EventType "swiss"]
[EventCountry "MEX"]
[SourceTitle "playchess.com"]
[Source "ChessBase"]
[SourceQuality "1"]
[TimeControl "5400+30"]

{[%evp 9,93,-16,-20,-71,0,0,0,0,7,0,12,14,0,0,8,0,0,0,0,-3,0,0,17,-16,31,-29,-35,-32,-43,-53,-42,-49,-32,-55,-26,-31,7,-20,89,84,183,177,296,251,260,256,306,300,285,288,366,346,397,394,428,424,384,375,29973,5502,5995,5302,2562,1639,1611,1442,1348,1102,1083,968,1345,1362,1377,1373,1306,1216,1121,776,1391,790,1338,1173,29986,29987,29987,29988]} 1. d4 {[%emt 0:04:18]} d5 {[%emt 0:10:50]} 2. Bf4 {[%emt 0:00:12]} Nf6 {[%emt 0:01:40]} 3. e3 {[%emt 0:00:07]} c5 {[%emt 0:00:13]} 4. c3 {[%emt 0:05:24]} Nc6 {[%emt 0:00:22]} 5. Bd3 {[%emt 0:03:40]} Qb6 {[%emt 0:02:15]} 6. Qc1 {[%emt 0:03:45] D00: 1 d4 d5: Unusual lines.} (6. b3 $11) 6... Bg4 {[%emt 0:02:59]} ({Black should play} 6... cxd4 $17 {White must now prevent ...e5.} 7. cxd4 Nb4) 7. h3 $11 {[%emt 0:01:38]} Bh5 {[%emt 0:01:46][%cal Rc5d4]} 8. Nd2 {[%emt 0:01:26] The position is equal.} Rc8 {[%emt 0:00:31][%cal Rc5d4]} 9. Qb1 {[%emt 0:00:36]} Bg6 {[%emt 0:02:11]} 10. Bxg6 {[%emt 0:00:14]} hxg6 {[%emt 0:00:03]} 11. Ngf3 {[%emt 0:00:17] [#]} cxd4 $146 {[%emt 0:08:52]} ({Predecessor:} 11... e6 12. O-O Be7 13. Ne5 Nxe5 14. Bxe5 cxd4 15. exd4 Bd6 16. Re1 O-O 17. Qc2 Bxe5 18. dxe5 {0-1 (54) Kraemer,M (2046)-Hofer,E (2208) Innsbruck 2018}) 12. exd4 {[%emt 0:01:16]} Qa6 {[%emt 0:01:16]} 13. Ne5 {[%emt 0:15:09]} Nxe5 {[%emt 0:06:02]} 14. Bxe5 {[%emt 0:08:20]} Nd7 {[%emt 0:01:18]} 15. Bg3 {[%emt 0:02:58]} Rc6 {[%emt 0:03:00]} 16. Qc2 {[%emt 0:15:50]} e5 {[%emt 0:03:08]} (16... g5 $11) 17. Nf3 {[%emt 0:05:12]} (17. Bxe5 $14 Re6 18. O-O-O) 17... e4 {[%emt 0:01:15]} 18. Ne5 {[%emt 0:00:27]} Nxe5 {[%emt 0:00:49]} 19. Bxe5 {[%emt 0:00:11]} f6 {[%emt 0:06:36][%cal Bf7f6,Bf6f5][%mdl 32]} 20. Bg3 {[%emt 0:02:17]} f5 {[%emt 0:04:34]} 21. Qe2 {[%emt 0:10:44]} Qa5 {[%emt 0:02:20][%cal Oc6c3]} 22. Be5 {[%emt 0:03:08]} g5 {[%emt 0:01:17]} 23. f3 {[%emt 0:00:58][%cal Bf2f3,Bf3e4,Be4f5][%mdl 32] [#] aiming for fxe4.} g4 {[%emt 0:02:33]} (23... Rxc3 $2 24. bxc3 Qxc3+ 25. Kf2 $18) (23... Bd6 $11) 24. fxe4 $16 {[%emt 0:01:35] White now steadily converts the win.} gxh3 {[%emt 0:20:19]} (24... fxe4 $16 {is a better defense.} 25. Qxg4 Qb5) 25. exf5 $18 {[%emt 0:06:24]} Kf7 {[%emt 0:00:27]} (25... hxg2 {was necessary.} 26. Qxg2 Rxh1+ 27. Qxh1 Rh6) 26. g4 {[%emt 0:01:55]} (26. Rxh3 Rxh3 27. gxh3 Rxc3 $16) 26... Be7 {[%emt 0:04:17]} 27. O-O {[%emt 0:05:59][%cal Oe5g7]} Qd8 {[%emt 0:13:07]} 28. Qf3 {[%emt 0:00:30]} Bh4 {[%emt 0:00:30]} 29. Rad1 {[%emt 0:00:30]} Rh7 {[%emt 0:00:30]} 30. Rd2 {[%emt 0:00:30]} Kg8 {[%emt 0:00:30]} 31. Re2 {[%emt 0:00:30]} (31. Rh2 Bg5 32. Rxh3 Rxh3 33. Qxh3 Rh6 $18) 31... Rhh6 {[%emt 0:00:30]} 32. Bf4 {[%emt 0:00:30]} Bg5 {[%emt 0:00:30]} 33. Rfe1 {[%emt 0:00:30]} ({But not} 33. Bxg5 Qxg5 34. Qxd5+ Kh7 $18) 33... Bxf4 $2 {[%emt 0:00:30]} (33... Rc8 $18 34. Bxg5 Qxg5 35. Qxd5+ Kh7) 34. Re8+ {[%emt 0:00:30]} Qxe8 {[%emt 0:00:30]} 35. Rxe8+ {[%emt 0:00:30]} Kf7 36. Rd8 {[%emt 0:00:30]} h2+ {[%emt 0:01:00]} 37. Kh1 {[%emt 0:00:30]} Rhd6 {[%emt 0:00:30]} 38. Rxd6 {[%emt 0:00:30]} Bxd6 {[%emt 0:00:30]} 39. Qxd5+ {[%emt 0:00:30][%mdl 4096] Endgame KQ-KRB} Kf6 {[%emt 0:00:30]} 40. c4 {[%emt 0:00:30][%cal Bc3c4,Bc4c5][%mdl 32]} Kg5 {[%emt 0:00:30]} 41. c5 {[%emt 0:00:30]} Bc7 {[%emt 0:00:30]} 42. Qe4 {[%emt 0:00:30] [#] And now d5 would win.} Bf4 {[%emt 0:00:30]} 43. Qg2 {[%emt 0:00:30]} Ra6 {[%emt 0:00:30]} 44. a3 {[%emt 0:00:30]} Ra4 {[%emt 0:00:30]} 45. Qh3 {[%emt 0:00:30] Hoping for Qh5+.} Rxd4 {[%emt 0:00:30]} 46. Qh5+ {[%emt 0:00:30]} Kf6 {[%emt 0:00:30]} 47. Qg6+ {[%emt 0:00:30] Weighted Error Value: White=0.16 (very precise) /Black=0.48} 1-0

[Event "67th Mexican-ch Open 2022"]
[Site "Chihuahua"]
[Date "2022.04.13"]
[Round "1.22"]
[White "Maass Garza R, Alejandro"]
[Black "Huerta Milan, Hector"]
[Result "1-0"]
[ECO "B73"]
[WhiteElo "2265"]
[BlackElo "1672"]
[Annotator "TA"]
[PlyCount "91"]
[EventDate "2022.04.12"]
[EventType "swiss"]
[EventCountry "MEX"]
[SourceTitle "playchess.com"]
[Source "ChessBase"]
[SourceQuality "1"]
[TimeControl "5400+30"]

{[%evp 18,91,30,16,21,10,28,0,0,-3,0,0,-16,0,0,0,20,10,35,10,22,16,76,-11,81,82,108,104,107,7,0,-33,-33,-26,-31,-24,-22,-86,-93,-87,-82,-116,-123,-123,-118,-136,-107,-200,-60,-39,-47,-116,-132,-141,-148,-193,-152,-141,-152,-146,-114,-195,-27,-225,-222,-212,-14,-14,-14,-25,2,30,112,112,29998,29999]} 1. e4 {[%emt 0:06:02]} c5 {[%emt 0:00:10]} 2. Nf3 {[%emt 0:00:13]} Nc6 {[%emt 0:00:17]} 3. d4 {[%emt 0:00:11]} cxd4 {[%emt 0:00:11]} 4. Nxd4 {[%emt 0:00:07]} Nf6 {[%emt 0:00:46]} 5. Nc3 {[%emt 0:00:07]} d6 {[%emt 0:00:17]} 6. Be2 {[%emt 0:02:59]} Bd7 {[%emt 0:02:35]} 7. O-O {[%emt 0:00:34]} g6 {[%emt 0:00:07]} 8. Nb3 {[%emt 0:01:18]} Bg7 {[%emt 0:01:24]} 9. Be3 {[%emt 0:00:31]} O-O {[%emt 0:00:55]} 10. Qd2 {[%emt 0:00:23]} Re8 {[%emt 0:01:44] B73: Sicilian Dragon: Classical System without 9 Nb3.} 11. h3 {[%emt 0:00:35]} a6 {[%emt 0:00:45]} 12. a4 {[%emt 0:01:12]} Na5 {[%emt 1:27:19] [#] The position is equal.} 13. f4 $146 {[%emt 0:11:29]} ({Predecessor:} 13. Nxa5 Qxa5 14. Rfd1 Rac8 15. Qd3 Be6 16. Rdc1 Bc4 17. Qd1 Bxe2 18. Qxe2 Qb4 19. Bd2 {0-1 (31) Abdulov,O (2295)-Abbasov,F (2549) Baku 2010}) 13... Bc6 {[%emt 0:00:00]} 14. Nxa5 {[%emt 0:10:01]} Qxa5 {[%emt 0:00:00]} 15. b4 {[%emt 0:04:15]} Qc7 {[%emt 0:00:00]} 16. Bd3 {[%emt 0:01:36]} Rac8 {[%emt 0:00:00]} 17. Ra3 {[%emt 0:02:31]} Bd7 {[%emt 0:00:00]} 18. Ne2 {[%emt 0:05:37]} Bc6 {[%emt 0:00:00]} 19. Ng3 {[%emt 0:01:22]} Ra8 {[%emt 0:00:00]} (19... b5 $11) 20. Qf2 {[%emt 0:03:43]} (20. c4 $16) 20... Rf8 {[%emt 0:00:00]} (20... b5 $11) 21. c4 $1 $16 {[%emt 0:04:58]} Rfc8 {[%emt 0:00:00]} 22. Bb6 {[%emt 0:01:28]} Qb8 {[%emt 0:00:00]} 23. b5 {[%emt 0:03:36] &Bianco is more active.} (23. a5 $16) 23... Be8 $11 {[%emt 0:01:48]} 24. Bd4 {[%emt 0:02:46]} Nd7 {[%emt 0:02:04]} 25. Bxg7 {[%emt 0:02:11]} Kxg7 {[%emt 0:00:06]} 26. b6 {[%emt 0:00:29]} a5 {[%emt 0:01:21]} 27. h4 {[%emt 0:01:45]} (27. Ne2 $11 {remains equal.}) 27... Rc6 $1 $17 {[%emt 0:00:29]} 28. h5 {[%emt 0:01:12]} Qd8 $1 {[%emt 0:00:54]} 29. Kh2 {[%emt 0:04:46]} Qxb6 {[%emt 0:00:20]} 30. Qf3 {[%emt 0:01:06]} Qd4 {[%emt 0:01:19]} 31. Qg4 {[%emt 0:07:32]} Kf8 {[%emt 0:00:35]} 32. f5 {[%emt 0:00:48] [#]} (32. Be2 $17) 32... Qg7 {[%emt 0:00:29]} ({Not} 32... Ne5 33. Qh4 g5 34. Qxg5 $17) ({Black should play} 32... gxf5 $1 $19 33. Qxf5 (33. Nxf5 Qe5+ 34. Kh1 e6 $17) 33... Qf6) 33. fxg6 $15 {[%emt 0:01:42]} hxg6 {[%emt 0:00:11][%cal Bh7g6,Bg6g5][%mdl 32]} 34. Qf4 {[%emt 0:01:48]} (34. hxg6 $15 Nf6 35. Qf4) 34... g5 {[%emt 0:00:36]} 35. Qf2 {[%emt 0:01:38]} Ne5 $36 {[%emt 0:00:29][%mdl 2048] Threatens to win with ...Ng4+. Keeping White busy.} 36. Be2 {[%emt 0:00:19] Inhibits Ng4+.} Bd7 {[%emt 0:00:06]} (36... Nxc4 37. Ra2) 37. Nf5 {[%emt 0:00:45]} Bxf5 {[%emt 0:00:35]} 38. Qxf5 {[%emt 0:00:39][%cal Oh5h6]} Rd8 {[%emt 0:00:58]} ({Worse is} 38... Nxc4 {[#]} 39. h6 $1 Qe5+ 40. Rg3 Qxf5 41. Rxf5 $11) 39. h6 {[%emt 0:00:58]} (39. Rh3 $17 {was worth a try.}) 39... Qg6 $2 {[%emt 0:00:34]} ({Black should try} 39... Qxh6+ $19 40. Rh3 Qf6 41. Qxf6 exf6 42. Rxf6 Kg7) 40. Qh3 $2 {[%emt 0:01:27]} (40. Qxg6 $11 {and White has nothing to worry.} Nxg6 41. Rg3) 40... Kg8 $19 {[%emt 0:00:14]} 41. Rg3 {[%emt 0:00:24]} Kh7 $2 {[%emt 0:00:46]} (41... Rc5 $19 {aiming for ...b6.} 42. Kg1 e6) 42. Bh5 $1 $11 {[%emt 0:00:45]} Qxh6 {[%emt 0:00:13] ...Kg7 is the strong threat.} 43. Qf5+ {[%emt 0:00:20]} Kh8 {[%emt 0:00:47] And now ...g4 would win.} 44. Rh3 $1 {[%emt 0:00:52]} Kg7 {[%emt 0:00:33]} (44... Rxc4 $2 45. Bxf7 Qxh3+ 46. Qxh3+ Kg7 47. Qf5 Rh8+ 48. Kg1 $18) (44... e6 $11 {keeps the balance.} 45. Qf2 Kg7) 45. Bxf7 $16 {[%emt 0:00:25][%mdl 64] Discovered Attack. Chess con chili.} Qf6 {[%emt 0:00:17][%mdl 8192]} (45... e6 $16 46. Bxe6 Qg6) 46. Qh7+ {[%emt 0:00:08] Weighted Error Value: White=0.30/Black=0.51} 1-0

[Event "67th Mexican-ch Open 2022"]
[Site "Chihuahua"]
[Date "2022.04.13"]
[Round "1.23"]
[White "Almendarez Verdin, Manuel Adan"]
[Black "Morales Garcia, Sergio Joshafatt"]
[Result "1/2-1/2"]
[ECO "D45"]
[WhiteElo "1662"]
[BlackElo "2246"]
[Annotator "TA"]
[PlyCount "112"]
[EventDate "2022.04.12"]
[EventType "swiss"]
[EventCountry "MEX"]
[SourceTitle "playchess.com"]
[Source "ChessBase"]
[SourceQuality "1"]
[TimeControl "5400+30"]

{[%evp 14,112,5,0,4,0,0,0,7,-12,-8,-12,-6,-34,14,-94,0,0,44,13,15,12,50,32,58,35,54,54,61,50,51,50,81,50,46,30,59,21,29,25,50,10,14,14,13,10,14,3,16,9,26,12,12,10,12,15,16,15,23,0,0,0,0,0,0,0,0,0,0,0,0,0,0,0,1033,0,8,8,167,0,0,0,0,0,0,0,0,0,0,0,0,0,0,0,0,0,0,0,0,0,0]} 1. d4 {[%emt 0:04:16]} d5 {[%emt 0:00:03]} 2. c4 {[%emt 0:00:15]} c6 {[%emt 0:00:06]} 3. Nc3 {[%emt 0:00:07]} Nf6 {[%emt 0:00:07]} 4. Nf3 {[%emt 0:00:23]} e6 {[%emt 0:00:24]} 5. e3 {[%emt 0:00:36]} Nbd7 {[%emt 0:00:15]} 6. b3 {[%emt 0:01:08]} Bb4 {[%emt 0:05:13]} 7. Bd2 {[%emt 0:01:52]} O-O {[%emt 0:02:15]} 8. Bd3 {[%emt 0:00:12]} Re8 {[%emt 0:15:33] D45: Semi-Slav: 5 e3.} 9. O-O {[%emt 0:05:17][%cal Oc3d5]} dxc4 {[%emt 0:09:05]} 10. bxc4 {[%emt 0:08:24]} e5 {[%emt 0:03:27] Strongly threatening ...Bxc3.} 11. dxe5 {[%emt 0:06:35]} Nxe5 {[%emt 0:01:45]} 12. Nxe5 {[%emt 0:00:17]} Rxe5 {[%emt 0:00:12]} 13. Qc2 {[%emt 0:01:41] [#]} Bf8 $146 {[%emt 0:18:50]} (13... Rh5 $15 {is more appropriate.}) ({Predecessor:} 13... Rh5 14. Ne2 Bxd2 15. Qxd2 Ne4 16. Qc2 Qh4 17. h3 Ng5 18. Nf4 Nf3+ 19. Kh1 Bxh3 20. gxh3 {0-1 (49) Andersen,J (2264)-Alascio Ruiz,J (2216) ICCF email 2017}) 14. h3 {[%emt 0:01:29] [#]} (14. Rfd1 $11) 14... Re8 {[%emt 0:10:25]} (14... Bxh3 $1 $17 {And now ...Rg5 would win.} 15. Ne2 (15. gxh3 $2 Rg5+ 16. Kh2 Ng4+ 17. Kh1 Rh5 $19) 15... Bc8) 15. Rad1 {[%emt 0:00:31]} Be6 {[%emt 0:02:09]} 16. Bc1 {[%emt 0:00:34][%cal Od3h7]} Qa5 {[%emt 0:01:34]} 17. Ne2 {[%emt 0:03:37]} h6 {[%emt 0:04:39]} 18. Nf4 {[%emt 0:01:26]} Rad8 {[%emt 0:04:00]} 19. Bb2 {[%emt 0:00:43]} Nd7 {[%emt 0:02:30][%cal Bf6d7,Bd7c5,Bc5e4][%mdl 32]} 20. Nxe6 {[%emt 0:03:50]} Rxe6 {[%emt 0:00:19]} 21. Bh7+ {[%emt 0:00:45] This bishop pair is nice.} Kh8 {[%emt 0:00:05]} 22. Bf5 {[%emt 0:00:18]} Rd6 {[%emt 0:01:45]} 23. Rxd6 {[%emt 0:08:52]} Bxd6 {[%emt 0:00:05]} 24. Rd1 {[%emt 0:04:54]} Nc5 {[%emt 0:02:14]} 25. Bg4 {[%emt 0:04:09][%cal Od1d6]} Kg8 {[%emt 0:04:40]} 26. g3 {[%emt 0:02:00]} Be7 {[%emt 0:03:59]} 27. Qc3 {[%emt 0:06:22][%csl Gb2][%cal Rc3g7]} Rxd1+ {[%emt 0:02:17]} 28. Bxd1 {[%emt 0:00:12][%csl Gb2][%cal Rc3g7]} Qxc3 {[%emt 0:01:08]} 29. Bxc3 $11 {[%emt 0:00:07][%mdl 4096] Endgame KBB-KBN} Ne4 {[%emt 0:01:13]} 30. Be1 {[%emt 0:00:35]} Bc5 {[%emt 0:02:59]} 31. Kg2 {[%emt 0:01:09]} Kf8 {[%emt 0:00:17]} 32. Kf3 {[%emt 0:01:03]} Nd6 {[%emt 0:00:03]} 33. Be2 {[%emt 0:00:12]} Ke7 {[%emt 0:00:28]} 34. Bc3 {[%emt 0:00:38]} f6 {[%emt 0:00:26]} 35. Bd3 {[%emt 0:00:09]} Nf7 {[%emt 0:01:09]} 36. Ke2 {[%emt 0:00:20]} Ne5 {[%emt 0:00:36]} 37. Bd4 {[%emt 0:02:12]} Bxd4 {[%emt 0:01:57]} 38. exd4 {[%emt 0:00:02]} Nxd3 {[%emt 0:00:19]} 39. Kxd3 {[%emt 0:00:10] KP-KP} b5 {[%emt 0:00:40]} 40. a4 {[%emt 0:02:55]} a6 {[%emt 0:00:44]} 41. Kc3 {[%emt 0:01:42]} Kd6 {[%emt 0:00:10]} 42. Kb4 {[%emt 0:00:12]} bxc4 {[%emt 0:00:36]} 43. Kxc4 {[%emt 0:00:23] Black must now prevent g4.} a5 $2 {[%emt 0:00:40][%mdl 8192] [#]} (43... f5 $11) 44. f3 $2 {[%emt 0:00:43]} (44. g4 $1 $18 g6 45. h4) 44... g6 {[%emt 0:00:24]} 45. h4 {[%emt 0:03:27]} f5 $2 {[%emt 0:00:17] [#]} (45... h5 $11) 46. f4 $2 {[%emt 0:10:42]} (46. g4 $1 $18) 46... h5 {[%emt 0:00:34] The position is equal.} 47. Kc3 $1 {[%emt 0:00:02]} Ke6 {[%emt 0:00:31]} (47... Kd5 $5 48. Kd3 c5 49. dxc5 Kxc5 $11) 48. Kc4 {[%emt 0:01:01] Threatening mate with Kc5.} Kd6 {[%emt 0:00:08]} 49. Kc3 $1 {[%emt 0:00:12] Intending Kc4 and mate.} Kd5 {[%emt 0:00:35]} 50. Kd3 {[%emt 0:16:49]} Ke6 {[%emt 0:00:59]} 51. Kc3 {[%emt 0:00:00]} Kd5 {[%emt 0:00:30]} 52. Kd3 {[%emt 0:00:00]} c5 {[%emt 0:00:17]} 53. dxc5 {[%emt 0:00:00]} Kxc5 {[%emt 0:00:02]} 54. Kc3 {[%emt 0:00:00]} Kd5 {[%emt 0:00:04]} 55. Kd3 {[%emt 0:00:00]} Kc5 {[%emt 0:00:22] ( -> ...Kb4)} 56. Kc3 {[%emt 0:00:00]} Kd5 {[%emt 0:00:04] Weighted Error Value: White=0.25 (precise) /Black=0.16 (very precise)} 1/2-1/2

[Event "67th Mexican-ch Open 2022"]
[Site "Chihuahua"]
[Date "2022.04.13"]
[Round "1.24"]
[White "Tapie Amione, Pablo Adib"]
[Black "Gomez Vazquez, Enrique"]
[Result "1-0"]
[ECO "B98"]
[WhiteElo "2241"]
[BlackElo "1661"]
[Annotator "TA"]
[PlyCount "71"]
[EventDate "2022.04.12"]
[EventType "swiss"]
[EventCountry "MEX"]
[SourceTitle "playchess.com"]
[Source "ChessBase"]
[SourceQuality "1"]
[TimeControl "5400+30"]

{[%evp 17,71,54,66,43,56,41,58,31,119,110,114,79,150,143,142,137,157,132,176,63,133,136,254,58,66,72,91,77,79,81,83,65,72,104,89,86,84,101,128,93,189,209,164,96,106,48,52,56,487,474,497,211,29994,29995,29995,29996]} 1. e4 {[%emt 0:05:02]} c5 {[%emt 0:10:44]} 2. Nf3 {[%emt 0:00:45]} d6 {[%emt 0:00:38]} 3. d4 {[%emt 0:00:38]} cxd4 {[%emt 0:00:19]} 4. Nxd4 {[%emt 0:00:03]} Nf6 {[%emt 0:00:17]} 5. Nc3 {[%emt 0:00:08]} a6 {[%emt 0:00:13]} 6. Bg5 {[%emt 0:00:39]} e6 {[%emt 0:00:25]} 7. f4 {[%emt 0:00:20]} Be7 {[%emt 0:01:52]} 8. Qf3 {[%emt 0:00:12]} Qb6 {[%emt 0:04:04]} 9. O-O-O {[%emt 0:02:32]} Nc6 {[%emt 0:02:33]} 10. Nb3 {[%emt 0:02:57] B98: Sicilian Najdorf: 6 Bg5 e6 7 f4 Be7, sidelines.} Bd7 {[%emt 0:04:02]} 11. Bh4 {[%emt 0:07:00]} Qc7 {[%emt 0:07:23]} 12. g4 {[%emt 0:02:19][%cal Bg2g4,Bg4g5][%mdl 32] [#] White is slightly better.} O-O-O $146 {[%emt 0:03:41]} (12... O-O $14) ({Predecessor:} 12... h6 13. Bg3 e5 14. f5 Rc8 15. Kb1 Na5 16. h4 Bc6 17. Bd3 Nd7 18. Nxa5 Qxa5 {1-0 (58) Almasi,Z (2713)-Aagaard,J (2517) Istanbul 2012}) 13. g5 $16 {[%emt 0:01:26]} Ne8 {[%emt 0:00:37]} 14. Bf2 {[%emt 0:00:11]} Kb8 {[%emt 0:01:27]} (14... h6 $142) 15. Rg1 {[%emt 0:06:29]} f6 {[%emt 0:02:13]} 16. h4 {[%emt 0:04:28] 0x0.001a398f4a34dp-1022s more active pieces.} Rf8 {[%emt 0:02:30]} 17. Qe3 {[%emt 0:01:01]} fxg5 {[%emt 0:06:42]} 18. fxg5 {[%emt 0:07:22]} (18. hxg5 $18 {Threatens to win with Bh3.} h6 19. gxh6) 18... h6 {[%emt 0:10:54]} (18... b5 $14) 19. Bb5 {[%emt 0:07:33]} Rc8 {[%emt 0:05:18]} (19... axb5 $2 20. Nxb5 Qc8 21. Na5 $1 {[%mdl 512]}) (19... hxg5 $16 20. hxg5 (20. Bxc6 bxc6 21. hxg5 Bc8 $14) 20... Bc8) 20. Be2 $2 {[%emt 0:10:54]} ({Weaker is} 20. gxh6 axb5 21. hxg7 Rg8 $16) (20. Bxc6 $18 bxc6 21. e5 (21. gxh6 Bf6 $18)) 20... hxg5 {[%emt 0:04:57]} 21. hxg5 {[%emt 0:00:04]} Qd8 {[%emt 0:05:39][%cal Oe7g5]} 22. Be1 {[%emt 0:02:37]} Nc7 {[%emt 0:05:43]} 23. Kb1 {[%emt 0:02:07]} e5 {[%emt 0:03:26]} 24. Nd5 {[%emt 0:05:08]} Nxd5 {[%emt 0:16:53]} 25. exd5 {[%emt 0:00:06]} Nd4 {[%emt 0:00:00]} 26. Nxd4 {[%emt 0:02:15]} exd4 {[%emt 0:00:00]} 27. Rxd4 {[%emt 0:00:53] And now Re4 would win.} Bf5 {[%emt 0:00:00] Inhibits Re4.} 28. Bc3 {[%emt 0:01:12][%cal Oe2a6]} g6 {[%emt 0:00:00]} (28... Rh8 $16 {was necessary.}) 29. Rb4 $1 $18 {[%emt 0:00:18] Bxa6 is the strong threat.} Ka8 {[%emt 0:00:00] [#]} 30. Bc4 {[%emt 0:02:35]} (30. Bxa6 $1 $18 {[%mdl 512]} bxa6 31. Rb6) 30... Qd7 $16 {[%emt 0:00:00]} 31. Bd4 {[%emt 0:04:44]} (31. Bd3 $16) 31... a5 $1 $14 {[%emt 0:00:00]} 32. Qa3 $40 {[%emt 0:00:04][%mdl 128] White has some attack.} Bxc2+ $2 {[%emt 0:00:31][%mdl 8192] A mistake that costs the game.} 33. Kxc2 $18 {[%emt 0:03:17]} ({But not} 33. Kc1 $2 {[#]} Bd8 $1 34. Kxc2 Rf4 $19) 33... Qf5+ {[%emt 0:00:31]} 34. Kb3 {[%emt 0:00:04]} (34. Kd1 $142 Bd8 35. Ra4) 34... Rxc4 $2 {[%emt 0:01:49]} (34... Bd8 $18) 35. Qxa5+ {[%emt 0:00:08]} ({Worse is} 35. Kxc4 Rc8+ 36. Kb5 Rc6 37. Qxa5+ Ra6 38. Qxa6+ bxa6+ 39. Kxa6 Qd3+ 40. Kb6 Bd8+ 41. Kc6 Qe2 42. Ra4+ Kb8 $11) 35... Kb8 {[%emt 0:00:29]} 36. Ba7+ {[%emt 0:00:10] Weighted Error Value: White=0.48/Black=0.77} 1-0